[Event "Titled Tuesday Blitz June 27 Late 2023"]
[White "Megalios, Konstantinos"]
[Black "Zampronha, Wladimir Camilo"]
[WhiteFideId "4238044"]
[BlackFideId "2103087"]
[WhiteElo "2608"]
[BlackElo "2281"]
[Result "0-1"]
[Round "1"]
[TimeControl "180+2"]
[Date "2023.06.27"]
[WhiteClock "0:00:00"]
[BlackClock "0:00:43"]
[Board "141"]

1. Nf3 {[%clk 0:02:59]}  Nf6 {[%clk 0:02:59]} 2. b3 {[%clk 0:02:58]}  e6 {[%clk 0:02:58]} 3. Bb2 {[%clk 0:02:58]}  d5 {[%clk 0:02:59]} 4. g3 {[%clk 0:02:57]}  Be7 {[%clk 0:02:59]} 5. Bg2 {[%clk 0:02:57]}  O-O {[%clk 0:03:00]} 6. O-O {[%clk 0:02:58]}  c5 {[%clk 0:03:00]} 7. e3 {[%clk 0:02:57]}  Nc6 {[%clk 0:03:00]} 8. d4 {[%clk 0:02:54]}  b6 {[%clk 0:03:00]} 9. c4 {[%clk 0:02:52]}  Ba6 {[%clk 0:02:59]} 10. Nbd2 {[%clk 0:02:44]}  Rc8 {[%clk 0:02:59]} 11. Re1 {[%clk 0:02:42]}  Qc7 {[%clk 0:02:54]} 12. cxd5 {[%clk 0:02:40]}  exd5 {[%clk 0:02:53]} 13. Rc1 {[%clk 0:02:40]}  Qb8 {[%clk 0:02:50]} 14. Bh3 {[%clk 0:02:16]}  Rcd8 {[%clk 0:02:48]} 15. dxc5 {[%clk 0:02:11]}  bxc5 {[%clk 0:02:44]} 16. Bxf6 {[%clk 0:02:10]}  Bxf6 {[%clk 0:02:39]} 17. Rxc5 {[%clk 0:02:10]}  Nb4 {[%clk 0:02:37]} 18. Bf1 {[%clk 0:01:49]}  Bxf1 {[%clk 0:02:30]} 19. Nxf1 {[%clk 0:01:43]}  Nxa2 {[%clk 0:02:27]} 20. Rxd5 {[%clk 0:01:30]}  Nc3 {[%clk 0:02:22]} 21. Rxd8 {[%clk 0:01:30]}  Rxd8 {[%clk 0:02:13]} 22. Qc2 {[%clk 0:01:27]}  Qb5 {[%clk 0:02:02]} 23. Nd4 {[%clk 0:01:17]}  Bxd4 {[%clk 0:01:45]} 24. exd4 {[%clk 0:01:18]}  Nd5 {[%clk 0:01:45]} 25. Qc4 {[%clk 0:01:16]}  Qb7 {[%clk 0:01:38]} 26. Ne3 {[%clk 0:01:04]}  g6 {[%clk 0:01:38]} 27. Nxd5 {[%clk 0:00:55]}  Qxd5 {[%clk 0:01:39]} 28. Re8+ {[%clk 0:00:55]}  Kg7 {[%clk 0:01:39]} 29. Rxd8 {[%clk 0:00:54]}  Qxd8 {[%clk 0:01:40]} 30. d5 {[%clk 0:00:54]}  Qd6 {[%clk 0:01:27]} 31. b4 {[%clk 0:00:53]}  Kf6 {[%clk 0:01:26]} 32. Qd4+ {[%clk 0:00:46]}  Qe5 {[%clk 0:01:18]} 33. Qd2 {[%clk 0:00:20]}  Ke7 {[%clk 0:01:17]} 34. Kf1 {[%clk 0:00:19]}  Kd6 {[%clk 0:01:18]} 35. Qa2 {[%clk 0:00:17]}  Qxd5 {[%clk 0:01:15]} 36. Qxa7 {[%clk 0:00:15]}  Qd1+ {[%clk 0:01:13]} 37. Kg2 {[%clk 0:00:16]}  Qd5+ {[%clk 0:01:14]} 38. Kg1 {[%clk 0:00:12]}  Qd1+ {[%clk 0:01:13]} 39. Kg2 {[%clk 0:00:12]}  Qd5+ {[%clk 0:01:14]} 40. f3 {[%clk 0:00:12]}  Qd2+ {[%clk 0:01:14]} 41. Qf2 {[%clk 0:00:12]}  Qxb4 {[%clk 0:01:14]} 42. Qe2 {[%clk 0:00:12]}  Qb7 {[%clk 0:01:01]} 43. h4 {[%clk 0:00:11]}  Qe7 {[%clk 0:01:01]} 44. Qb2 {[%clk 0:00:10]}  h5 {[%clk 0:00:59]} 45. Kf2 {[%clk 0:00:09]}  Qa7+ {[%clk 0:00:57]} 46. Ke2 {[%clk 0:00:09]}  Qe7+ {[%clk 0:00:57]} 47. Kd3 {[%clk 0:00:08]}  Qe6 {[%clk 0:00:55]} 48. Qb4+ {[%clk 0:00:05]}  Kd7 {[%clk 0:00:54]} 49. Qb7+ {[%clk 0:00:04]}  Ke8 {[%clk 0:00:50]} 50. Qe4 {[%clk 0:00:03]}  Ke7 {[%clk 0:00:49]} 51. Kd4 {[%clk 0:00:01]}  Kd6 {[%clk 0:00:46]} 52. Qf4+ {[%clk 0:00:01]}  Ke7 {[%clk 0:00:45]} 53. Qe5 {[%clk 0:00:00]}  Kd7 {[%clk 0:00:43]} 0-1


[Site "https://www.chess.com"]

[Event "Titled Tuesday Blitz June 27 Late 2023"]
[White "Camacho Collados, Marcos"]
[Black "Coelho, Ramyres Santana"]
[WhiteFideId "2266237"]
[BlackFideId "2120690"]
[WhiteElo "2604"]
[BlackElo "2280"]
[Result "0-1"]
[Round "1"]
[TimeControl "180+2"]
[Date "2023.06.27"]
[WhiteClock "0:00:59"]
[BlackClock "0:00:19"]
[Board "143"]

1. Nf3 {[%clk 0:02:59]}  Nf6 {[%clk 0:02:59]} 2. b3 {[%clk 0:02:59]}  g6 {[%clk 0:02:57]} 3. Bb2 {[%clk 0:02:59]}  Bg7 {[%clk 0:02:57]} 4. g3 {[%clk 0:03:00]}  O-O {[%clk 0:02:57]} 5. Bg2 {[%clk 0:03:00]}  Nh5 {[%clk 0:02:57]} 6. d4 {[%clk 0:02:57]}  c5 {[%clk 0:02:57]} 7. O-O {[%clk 0:02:53]}  cxd4 {[%clk 0:02:57]} 8. Bxd4 {[%clk 0:02:53]}  Nc6 {[%clk 0:02:53]} 9. Bxg7 {[%clk 0:02:53]}  Nxg7 {[%clk 0:02:54]} 10. c4 {[%clk 0:02:53]}  d6 {[%clk 0:02:54]} 11. Nc3 {[%clk 0:02:53]}  Bg4 {[%clk 0:02:51]} 12. h3 {[%clk 0:02:54]}  Bxf3 {[%clk 0:02:50]} 13. Bxf3 {[%clk 0:02:54]}  Qd7 {[%clk 0:02:48]} 14. Bg2 {[%clk 0:02:54]}  a6 {[%clk 0:02:47]} 15. Nd5 {[%clk 0:02:53]}  Qd8 {[%clk 0:02:45]} 16. Qd2 {[%clk 0:02:49]}  e6 {[%clk 0:02:41]} 17. Nc3 {[%clk 0:02:49]}  Qe7 {[%clk 0:02:36]} 18. Rad1 {[%clk 0:02:49]}  Rfd8 {[%clk 0:02:35]} 19. Rfe1 {[%clk 0:02:44]}  Ne8 {[%clk 0:02:34]} 20. h4 {[%clk 0:02:42]}  Rac8 {[%clk 0:02:31]} 21. h5 {[%clk 0:02:41]}  gxh5 {[%clk 0:02:27]} 22. Qh6 {[%clk 0:02:39]}  Qf6 {[%clk 0:02:24]} 23. Qe3 {[%clk 0:02:33]}  h4 {[%clk 0:02:18]} 24. Ne4 {[%clk 0:02:33]}  Qe7 {[%clk 0:02:12]} 25. g4 {[%clk 0:02:28]}  Ne5 {[%clk 0:02:06]} 26. g5 {[%clk 0:02:26]}  Ng6 {[%clk 0:02:00]} 27. Qf3 {[%clk 0:02:15]}  d5 {[%clk 0:01:35]} 28. cxd5 {[%clk 0:02:11]}  exd5 {[%clk 0:01:34]} 29. Nf6+ {[%clk 0:02:05]}  Nxf6 {[%clk 0:01:33]} 30. gxf6 {[%clk 0:02:05]}  Qe5 {[%clk 0:01:21]} 31. Rxd5 {[%clk 0:02:02]}  Rxd5 {[%clk 0:01:21]} 32. Qxd5 {[%clk 0:02:02]}  Qxd5 {[%clk 0:01:21]} 33. Bxd5 {[%clk 0:02:02]}  Rc7 {[%clk 0:01:10]} 34. e3 {[%clk 0:01:53]}  Ne5 {[%clk 0:00:58]} 35. f4 {[%clk 0:01:47]}  Ng4 {[%clk 0:00:54]} 36. Rd1 {[%clk 0:01:30]}  Nxe3 {[%clk 0:00:49]} 37. Rd3 {[%clk 0:01:29]}  Nxd5 {[%clk 0:00:44]} 38. Rxd5 {[%clk 0:01:29]}  h6 {[%clk 0:00:42]} 39. Kg2 {[%clk 0:01:22]}  Rc2+ {[%clk 0:00:36]} 40. Kf3 {[%clk 0:01:22]}  Rxa2 {[%clk 0:00:36]} 41. f5 {[%clk 0:01:19]}  h3 {[%clk 0:00:35]} 42. Rd8+ {[%clk 0:01:11]}  Kh7 {[%clk 0:00:33]} 43. Rd1 {[%clk 0:01:11]}  h2 {[%clk 0:00:31]} 44. Kg3 {[%clk 0:01:11]}  h5 {[%clk 0:00:25]} 45. Kh3 {[%clk 0:01:08]}  Kh6 {[%clk 0:00:25]} 46. Kh4 {[%clk 0:01:08]}  Rg2 {[%clk 0:00:23]} 47. Rh1 {[%clk 0:01:04]}  Rf2 {[%clk 0:00:23]} 48. Kg3 {[%clk 0:01:02]}  Rxf5 {[%clk 0:00:22]} 49. Rxh2 {[%clk 0:01:02]}  Rxf6 {[%clk 0:00:23]} 50. Rc2 {[%clk 0:01:03]}  Rc6 {[%clk 0:00:23]} 51. Rd2 {[%clk 0:01:03]}  Kg6 {[%clk 0:00:22]} 52. Rd8 {[%clk 0:01:03]}  b5 {[%clk 0:00:23]} 53. Rg8+ {[%clk 0:01:02]}  Kf6 {[%clk 0:00:22]} 54. Rh8 {[%clk 0:01:03]}  Kg7 {[%clk 0:00:21]} 55. Ra8 {[%clk 0:01:03]}  Rc3+ {[%clk 0:00:20]} 56. Kh4 {[%clk 0:01:03]}  Rxb3 {[%clk 0:00:21]} 57. Rxa6 {[%clk 0:01:04]}  Rb1 {[%clk 0:00:19]} 58. Kxh5 {[%clk 0:01:04]}  b4 {[%clk 0:00:20]} 59. Kg4 {[%clk 0:01:05]}  b3 {[%clk 0:00:20]} 60. Kg3 {[%clk 0:01:05]}  b2 {[%clk 0:00:20]} 61. Kg2 {[%clk 0:00:59]}  Rc1 {[%clk 0:00:19]} 0-1


[Site "https://www.chess.com"]

[Event "Titled Tuesday Blitz June 27 Late 2023"]
[White "rionelG"]
[Black "Sun, Rick"]
[BlackFideId "30909481"]
[WhiteElo "2274"]
[BlackElo "2600"]
[Result "0-1"]
[Round "1"]
[TimeControl "180+2"]
[Date "2023.06.27"]
[WhiteClock "0:00:00"]
[BlackClock "0:00:04"]
[Board "146"]

1. e4 {[%clk 0:02:59]}  e5 {[%clk 0:02:59]} 2. Nf3 {[%clk 0:02:58]}  Nc6 {[%clk 0:02:59]} 3. d4 {[%clk 0:02:59]}  exd4 {[%clk 0:02:59]} 4. Nxd4 {[%clk 0:02:59]}  Bc5 {[%clk 0:02:59]} 5. Nxc6 {[%clk 0:02:58]}  Qf6 {[%clk 0:02:58]} 6. Qf3 {[%clk 0:02:58]}  Qxf3 {[%clk 0:02:56]} 7. gxf3 {[%clk 0:02:58]}  dxc6 {[%clk 0:02:54]} 8. Be3 {[%clk 0:02:58]}  Bxe3 {[%clk 0:02:43]} 9. fxe3 {[%clk 0:02:58]}  Be6 {[%clk 0:02:44]} 10. Rg1 {[%clk 0:02:56]}  g6 {[%clk 0:02:42]} 11. Nd2 {[%clk 0:02:52]}  Ke7 {[%clk 0:02:36]} 12. Nb3 {[%clk 0:02:46]}  b6 {[%clk 0:02:16]} 13. Nd4 {[%clk 0:02:43]}  Bd7 {[%clk 0:02:12]} 14. a4 {[%clk 0:02:30]}  Nf6 {[%clk 0:02:07]} 15. Ba6 {[%clk 0:02:28]}  Rab8 {[%clk 0:01:50]} 16. b4 {[%clk 0:01:33]}  Rhd8 {[%clk 0:01:29]} 17. Ke2 {[%clk 0:01:24]}  Nh5 {[%clk 0:01:08]} 18. c3 {[%clk 0:01:13]}  c5 {[%clk 0:00:52]} 19. Nc2 {[%clk 0:00:52]}  Ng7 {[%clk 0:00:32]} 20. Bc4 {[%clk 0:00:49]}  Be6 {[%clk 0:00:30]} 21. Bxe6 {[%clk 0:00:46]}  Nxe6 {[%clk 0:00:30]} 22. b5 {[%clk 0:00:46]}  Rd7 {[%clk 0:00:27]} 23. Rgd1 {[%clk 0:00:44]}  Rxd1 {[%clk 0:00:25]} 24. Rxd1 {[%clk 0:00:43]}  h5 {[%clk 0:00:25]} 25. Na3 {[%clk 0:00:43]}  f6 {[%clk 0:00:23]} 26. Nc4 {[%clk 0:00:42]}  g5 {[%clk 0:00:20]} 27. Rb1 {[%clk 0:00:17]}  Ra8 {[%clk 0:00:20]} 28. a5 {[%clk 0:00:16]}  g4 {[%clk 0:00:18]} 29. f4 {[%clk 0:00:15]}  h4 {[%clk 0:00:17]} 30. Ra1 {[%clk 0:00:14]}  Rg8 {[%clk 0:00:13]} 31. e5 {[%clk 0:00:13]}  g3 {[%clk 0:00:11]} 32. hxg3 {[%clk 0:00:13]}  hxg3 {[%clk 0:00:11]} 33. Kf3 {[%clk 0:00:13]}  g2 {[%clk 0:00:08]} 34. Rg1 {[%clk 0:00:12]}  bxa5 {[%clk 0:00:07]} 35. Nxa5 {[%clk 0:00:12]}  fxe5 {[%clk 0:00:08]} 36. fxe5 {[%clk 0:00:10]}  Ng5+ {[%clk 0:00:08]} 37. Kxg2 {[%clk 0:00:09]}  Nh3+ {[%clk 0:00:08]} 38. Kxh3 {[%clk 0:00:06]}  Rxg1 {[%clk 0:00:09]} 39. Nc6+ {[%clk 0:00:06]}  Ke6 {[%clk 0:00:09]} 40. Nxa7 {[%clk 0:00:06]}  Kxe5 {[%clk 0:00:09]} 41. Nc6+ {[%clk 0:00:05]}  Ke4 {[%clk 0:00:09]} 42. Nd8 {[%clk 0:00:04]}  Rg7 {[%clk 0:00:04]} 43. Ne6 {[%clk 0:00:03]}  Rh7+ {[%clk 0:00:04]} 44. Kg4 {[%clk 0:00:03]}  Kxe3 {[%clk 0:00:04]} 45. Nxc5 {[%clk 0:00:00]}  Kd2 {[%clk 0:00:04]} 0-1


[Site "https://www.chess.com"]

[Event "Titled Tuesday Blitz June 27 Late 2023"]
[White "StarkyNZ"]
[Black "Isajevsky, Anton"]
[BlackFideId "4142500"]
[WhiteElo "2250"]
[BlackElo "2596"]
[Result "0-1"]
[Round "1"]
[TimeControl "180+2"]
[Date "2023.06.27"]
[WhiteClock "0:02:14"]
[BlackClock "0:02:40"]
[Board "150"]

1. c4 {[%clk 0:02:59]}  e6 {[%clk 0:02:59]} 2. d4 {[%clk 0:02:56]}  d5 {[%clk 0:02:57]} 3. Nf3 {[%clk 0:02:53]}  Nf6 {[%clk 0:02:57]} 4. Nc3 {[%clk 0:02:54]}  Be7 {[%clk 0:02:56]} 5. cxd5 {[%clk 0:02:54]}  exd5 {[%clk 0:02:56]} 6. Bf4 {[%clk 0:02:54]}  c6 {[%clk 0:02:56]} 7. e3 {[%clk 0:02:54]}  Bf5 {[%clk 0:02:56]} 8. Bd3 {[%clk 0:02:54]}  Bxd3 {[%clk 0:02:56]} 9. Qxd3 {[%clk 0:02:55]}  Nbd7 {[%clk 0:02:57]} 10. O-O {[%clk 0:02:55]}  O-O {[%clk 0:02:56]} 11. Rab1 {[%clk 0:02:56]}  a5 {[%clk 0:02:55]} 12. a3 {[%clk 0:02:56]}  Re8 {[%clk 0:02:54]} 13. b4 {[%clk 0:02:56]}  axb4 {[%clk 0:02:53]} 14. axb4 {[%clk 0:02:57]}  b5 {[%clk 0:02:53]} 15. Ne5 {[%clk 0:02:53]}  Nxe5 {[%clk 0:02:51]} 16. Bxe5 {[%clk 0:02:53]}  Nd7 {[%clk 0:02:51]} 17. Bg3 {[%clk 0:02:43]}  Nb6 {[%clk 0:02:48]} 18. e4 {[%clk 0:02:43]}  Ra3 {[%clk 0:02:46]} 19. exd5 {[%clk 0:02:31]}  Nxd5 {[%clk 0:02:44]} 20. Rfc1 {[%clk 0:02:31]}  Bxb4 {[%clk 0:02:42]} 21. Rxb4 {[%clk 0:02:18]}  Nxb4 {[%clk 0:02:43]} 22. Qf5 {[%clk 0:02:14]}  Rxc3 {[%clk 0:02:40]} 0-1


[Site "https://www.chess.com"]

[Event "Titled Tuesday Blitz June 27 Late 2023"]
[White "Grinev, Valeriy"]
[Black "Quirke, Jeffrey"]
[WhiteFideId "14117517"]
[BlackFideId "2013029"]
[WhiteElo "2594"]
[BlackElo "2232"]
[Result "1-0"]
[Round "1"]
[TimeControl "180+2"]
[Date "2023.06.27"]
[WhiteClock "0:02:21"]
[BlackClock "0:00:05"]
[Board "151"]

1. d4 {[%clk 0:03:00]}  e6 {[%clk 0:02:59]} 2. c4 {[%clk 0:03:01]}  b6 {[%clk 0:02:59]} 3. Nc3 {[%clk 0:03:00]}  Bb7 {[%clk 0:02:59]} 4. a3 {[%clk 0:03:01]}  f5 {[%clk 0:02:58]} 5. d5 {[%clk 0:03:01]}  Nf6 {[%clk 0:02:57]} 6. g3 {[%clk 0:03:01]}  Bd6 {[%clk 0:02:56]} 7. Bg2 {[%clk 0:03:01]}  O-O {[%clk 0:02:55]} 8. Nh3 {[%clk 0:03:02]}  Na6 {[%clk 0:02:46]} 9. O-O {[%clk 0:03:02]}  Be5 {[%clk 0:02:43]} 10. Bd2 {[%clk 0:02:55]}  Nc5 {[%clk 0:02:30]} 11. Nf4 {[%clk 0:02:52]}  Bxf4 {[%clk 0:02:11]} 12. Bxf4 {[%clk 0:02:51]}  exd5 {[%clk 0:02:01]} 13. cxd5 {[%clk 0:02:41]}  Nce4 {[%clk 0:01:39]} 14. Rc1 {[%clk 0:02:39]}  c6 {[%clk 0:01:35]} 15. Nxe4 {[%clk 0:02:36]}  Nxe4 {[%clk 0:01:27]} 16. dxc6 {[%clk 0:02:34]}  dxc6 {[%clk 0:01:26]} 17. Qb3+ {[%clk 0:02:35]}  Kh8 {[%clk 0:01:23]} 18. Rfd1 {[%clk 0:02:35]}  Qf6 {[%clk 0:01:05]} 19. Rd7 {[%clk 0:02:33]}  Ba6 {[%clk 0:01:05]} 20. Bxe4 {[%clk 0:02:27]}  fxe4 {[%clk 0:01:00]} 21. Qe3 {[%clk 0:02:26]}  Qxb2 {[%clk 0:00:42]} 22. Rxc6 {[%clk 0:02:25]}  Qxe2 {[%clk 0:00:39]} 23. Qxe2 {[%clk 0:02:23]}  Bxe2 {[%clk 0:00:38]} 24. Be5 {[%clk 0:02:22]}  Rg8 {[%clk 0:00:23]} 25. Rcc7 {[%clk 0:02:21]}  Rae8 {[%clk 0:00:12]} 26. Bxg7+ {[%clk 0:02:20]}  Rxg7 {[%clk 0:00:12]} 27. Rxg7 {[%clk 0:02:21]}  Bf3 {[%clk 0:00:07]} 28. Rxh7+ {[%clk 0:02:20]}  Kg8 {[%clk 0:00:07]} 29. Rcg7+ {[%clk 0:02:20]}  Kf8 {[%clk 0:00:05]} 30. Rxa7 {[%clk 0:02:21]} 1-0


[Site "https://www.chess.com"]

[Event "Titled Tuesday Blitz June 27 Late 2023"]
[White "Fernandez Hernandez, Gerardo"]
[Black "Przybylski, Wojciech"]
[WhiteFideId "2207400"]
[BlackFideId "1117599"]
[WhiteElo "2217"]
[BlackElo "2582"]
[Result "0-1"]
[Round "1"]
[TimeControl "180+2"]
[Date "2023.06.27"]
[WhiteClock "0:00:00"]
[BlackClock "0:00:02"]
[Board "156"]

1. e4 {[%clk 0:02:59]}  e5 {[%clk 0:02:59]} 2. Nf3 {[%clk 0:02:59]}  Nc6 {[%clk 0:02:59]} 3. Bc4 {[%clk 0:02:59]}  Nf6 {[%clk 0:02:58]} 4. Ng5 {[%clk 0:02:59]}  d5 {[%clk 0:02:58]} 5. exd5 {[%clk 0:02:59]}  Na5 {[%clk 0:02:58]} 6. Bb5+ {[%clk 0:02:55]}  c6 {[%clk 0:02:57]} 7. dxc6 {[%clk 0:02:56]}  bxc6 {[%clk 0:02:58]} 8. Bd3 {[%clk 0:02:55]}  h6 {[%clk 0:02:56]} 9. Ne4 {[%clk 0:02:36]}  Nd5 {[%clk 0:02:55]} 10. O-O {[%clk 0:02:23]}  Be7 {[%clk 0:02:55]} 11. Re1 {[%clk 0:02:18]}  O-O {[%clk 0:02:53]} 12. Ng3 {[%clk 0:02:15]}  Qc7 {[%clk 0:02:39]} 13. Nc3 {[%clk 0:02:03]}  f5 {[%clk 0:02:36]} 14. Bf1 {[%clk 0:01:45]}  Bb7 {[%clk 0:02:17]} 15. d3 {[%clk 0:01:32]}  Rae8 {[%clk 0:02:15]} 16. Bd2 {[%clk 0:01:26]}  Nf4 {[%clk 0:01:52]} 17. a3 {[%clk 0:01:17]}  c5 {[%clk 0:01:51]} 18. Nb5 {[%clk 0:01:08]}  Qc6 {[%clk 0:01:37]} 19. Bxa5 {[%clk 0:01:03]}  Nh3+ {[%clk 0:01:36]} 20. gxh3 {[%clk 0:00:56]}  Bh4 {[%clk 0:01:17]} 21. Nd6 {[%clk 0:00:20]}  Qxd6 {[%clk 0:01:07]} 22. Bg2 {[%clk 0:00:19]}  Bxg2 {[%clk 0:00:41]} 23. Kxg2 {[%clk 0:00:20]}  Qc6+ {[%clk 0:00:27]} 24. Qf3 {[%clk 0:00:20]}  e4 {[%clk 0:00:19]} 25. dxe4 {[%clk 0:00:20]}  fxe4 {[%clk 0:00:19]} 26. Qe2 {[%clk 0:00:11]}  e3+ {[%clk 0:00:18]} 27. f3 {[%clk 0:00:11]}  c4 {[%clk 0:00:18]} 28. Bb4 {[%clk 0:00:09]}  Rf4 {[%clk 0:00:17]} 29. Ne4 {[%clk 0:00:05]}  Re6 {[%clk 0:00:15]} 30. Qxe3 {[%clk 0:00:05]}  Rg6+ {[%clk 0:00:12]} 31. Ng3 {[%clk 0:00:04]}  Rff6 {[%clk 0:00:04]} 32. Qe8+ {[%clk 0:00:03]}  Kh7 {[%clk 0:00:04]} 33. Re7 {[%clk 0:00:03]}  Qd5 {[%clk 0:00:03]} 34. Re4 {[%clk 0:00:03]}  Qg5 {[%clk 0:00:02]} 35. Rg4 {[%clk 0:00:03]}  Qd5 {[%clk 0:00:02]} 36. Qe2 {[%clk 0:00:01]}  Bxg3 {[%clk 0:00:02]} 37. hxg3 {[%clk 0:00:00]}  Re6 {[%clk 0:00:02]} 0-1


[Site "https://www.chess.com"]

[Event "Titled Tuesday Blitz June 27 Late 2023"]
[White "Ballester Llagaria, Luis Eduardo"]
[Black "Vila Dupla, Aurelio"]
[WhiteFideId "2297620"]
[BlackFideId "2203383"]
[WhiteElo "2578"]
[BlackElo "2213"]
[Result "1-0"]
[Round "1"]
[TimeControl "180+2"]
[Date "2023.06.27"]
[WhiteClock "0:02:18"]
[BlackClock "0:00:00"]
[Board "157"]

1. e4 {[%clk 0:02:58]}  c5 {[%clk 0:02:57]} 2. Nc3 {[%clk 0:02:55]}  d6 {[%clk 0:02:53]} 3. d4 {[%clk 0:02:54]}  cxd4 {[%clk 0:02:51]} 4. Qxd4 {[%clk 0:02:55]}  Nc6 {[%clk 0:02:50]} 5. Qd2 {[%clk 0:02:55]}  Nf6 {[%clk 0:02:48]} 6. b3 {[%clk 0:02:56]}  e6 {[%clk 0:02:48]} 7. Bb2 {[%clk 0:02:57]}  d5 {[%clk 0:02:48]} 8. O-O-O {[%clk 0:02:51]}  Bb4 {[%clk 0:02:40]} 9. exd5 {[%clk 0:02:41]}  Nxd5 {[%clk 0:02:33]} 10. Nge2 {[%clk 0:02:40]}  O-O {[%clk 0:02:14]} 11. a3 {[%clk 0:02:39]}  Nxc3 {[%clk 0:02:11]} 12. Nxc3 {[%clk 0:02:40]}  Qxd2+ {[%clk 0:02:07]} 13. Rxd2 {[%clk 0:02:41]}  Bc5 {[%clk 0:02:05]} 14. Ne4 {[%clk 0:02:41]}  Be7 {[%clk 0:01:57]} 15. g3 {[%clk 0:02:40]}  b6 {[%clk 0:01:39]} 16. Nd6 {[%clk 0:02:37]}  Bxd6 {[%clk 0:01:21]} 17. Rxd6 {[%clk 0:02:38]}  Bb7 {[%clk 0:01:21]} 18. Bg2 {[%clk 0:02:37]}  Rac8 {[%clk 0:01:18]} 19. Rhd1 {[%clk 0:02:34]}  Rfd8 {[%clk 0:01:09]} 20. Bxc6 {[%clk 0:02:31]}  Rxd6 {[%clk 0:01:01]} 21. Bxb7 {[%clk 0:02:31]}  Rxd1+ {[%clk 0:01:00]} 22. Kxd1 {[%clk 0:02:32]}  Rd8+ {[%clk 0:01:00]} 23. Ke2 {[%clk 0:02:31]}  f6 {[%clk 0:00:59]} 24. c4 {[%clk 0:02:29]}  Kf7 {[%clk 0:00:58]} 25. Be4 {[%clk 0:02:30]}  g6 {[%clk 0:00:57]} 26. b4 {[%clk 0:02:30]}  Rc8 {[%clk 0:00:56]} 27. Bd3 {[%clk 0:02:29]}  a5 {[%clk 0:00:56]} 28. Bd4 {[%clk 0:02:28]}  axb4 {[%clk 0:00:55]} 29. axb4 {[%clk 0:02:29]}  Rb8 {[%clk 0:00:53]} 30. c5 {[%clk 0:02:26]}  e5 {[%clk 0:00:53]} 31. Be3 {[%clk 0:02:26]}  bxc5 {[%clk 0:00:52]} 32. Bxc5 {[%clk 0:02:27]}  f5 {[%clk 0:00:52]} 33. Bc4+ {[%clk 0:02:24]}  Kf6 {[%clk 0:00:52]} 34. Kd3 {[%clk 0:02:22]}  Rd8+ {[%clk 0:00:52]} 35. Kc3 {[%clk 0:02:21]}  Rd1 {[%clk 0:00:51]} 36. b5 {[%clk 0:02:19]}  Rc1+ {[%clk 0:00:48]} 37. Kb4 {[%clk 0:02:19]}  e4 {[%clk 0:00:00]} 38. b6 {[%clk 0:02:18]} 1-0


[Site "https://www.chess.com"]

[Event "Titled Tuesday Blitz June 27 Late 2023"]
[White "Bayo Milagro, Alvaro"]
[Black "Kopacz, Grzegorz"]
[WhiteFideId "22275240"]
[BlackFideId "1109880"]
[WhiteElo "2577"]
[BlackElo "2206"]
[Result "1-0"]
[Round "1"]
[TimeControl "180+2"]
[Date "2023.06.27"]
[WhiteClock "0:01:05"]
[BlackClock "0:00:41"]
[Board "159"]

1. d4 {[%clk 0:02:59]}  Nf6 {[%clk 0:02:59]} 2. Nf3 {[%clk 0:03:00]}  g6 {[%clk 0:02:58]} 3. g3 {[%clk 0:03:00]}  Bg7 {[%clk 0:02:58]} 4. Bg2 {[%clk 0:03:01]}  d5 {[%clk 0:02:59]} 5. O-O {[%clk 0:03:01]}  O-O {[%clk 0:02:59]} 6. c4 {[%clk 0:03:02]}  c6 {[%clk 0:03:00]} 7. b3 {[%clk 0:03:02]}  dxc4 {[%clk 0:03:00]} 8. bxc4 {[%clk 0:03:02]}  c5 {[%clk 0:03:00]} 9. Bb2 {[%clk 0:03:02]}  Qb6 {[%clk 0:03:00]} 10. Qb3 {[%clk 0:03:00]}  Ne4 {[%clk 0:02:57]} 11. e3 {[%clk 0:02:57]}  Nc6 {[%clk 0:02:54]} 12. Nc3 {[%clk 0:02:24]}  Nxc3 {[%clk 0:02:48]} 13. Bxc3 {[%clk 0:02:25]}  cxd4 {[%clk 0:02:47]} 14. Qxb6 {[%clk 0:02:22]}  axb6 {[%clk 0:02:46]} 15. Nxd4 {[%clk 0:02:22]}  Nxd4 {[%clk 0:02:40]} 16. Bxd4 {[%clk 0:02:20]}  Bxd4 {[%clk 0:02:40]} 17. exd4 {[%clk 0:02:21]}  Ra4 {[%clk 0:02:30]} 18. Rfc1 {[%clk 0:02:21]}  Be6 {[%clk 0:02:10]} 19. Bxb7 {[%clk 0:02:18]}  Rxc4 {[%clk 0:02:04]} 20. d5 {[%clk 0:02:13]}  Rxc1+ {[%clk 0:02:01]} 21. Rxc1 {[%clk 0:02:14]}  Bf5 {[%clk 0:02:00]} 22. Rc7 {[%clk 0:02:04]}  Rd8 {[%clk 0:01:41]} 23. Rxe7 {[%clk 0:02:01]}  Kf8 {[%clk 0:01:40]} 24. Rc7 {[%clk 0:02:01]}  Rd6 {[%clk 0:01:13]} 25. f3 {[%clk 0:01:48]}  h5 {[%clk 0:01:05]} 26. Kf2 {[%clk 0:01:48]}  b5 {[%clk 0:00:59]} 27. Ke3 {[%clk 0:01:43]}  b4 {[%clk 0:00:54]} 28. Kd4 {[%clk 0:01:43]}  Rb6 {[%clk 0:00:47]} 29. Kc5 {[%clk 0:01:40]}  b3 {[%clk 0:00:47]} 30. axb3 {[%clk 0:01:23]}  Rxb3 {[%clk 0:00:47]} 31. d6 {[%clk 0:01:07]}  Rxf3 {[%clk 0:00:41]} 32. Bxf3 {[%clk 0:01:05]} 1-0


[Site "https://www.chess.com"]

[Event "Titled Tuesday Blitz June 27 Late 2023"]
[White "Ezat, Mohamed"]
[Black "BrandonJiang123456"]
[WhiteFideId "10600906"]
[WhiteElo "2573"]
[BlackElo "2200"]
[Result "1-0"]
[Round "1"]
[TimeControl "180+2"]
[Date "2023.06.27"]
[WhiteClock "0:01:01"]
[BlackClock "0:00:09"]
[Board "161"]

1. d4 {[%clk 0:02:59]}  f5 {[%clk 0:02:57]} 2. Nc3 {[%clk 0:02:57]}  Nf6 {[%clk 0:02:56]} 3. Bg5 {[%clk 0:02:58]}  d5 {[%clk 0:02:56]} 4. Bxf6 {[%clk 0:02:56]}  exf6 {[%clk 0:02:54]} 5. e3 {[%clk 0:02:57]}  Be6 {[%clk 0:02:54]} 6. Bd3 {[%clk 0:02:56]}  Qd7 {[%clk 0:02:54]} 7. Qf3 {[%clk 0:02:56]}  Nc6 {[%clk 0:02:49]} 8. a3 {[%clk 0:02:55]}  Ne7 {[%clk 0:02:47]} 9. h3 {[%clk 0:02:54]}  Nc8 {[%clk 0:02:43]} 10. g4 {[%clk 0:02:50]}  fxg4 {[%clk 0:02:31]} 11. hxg4 {[%clk 0:02:49]}  Bxg4 {[%clk 0:02:30]} 12. Qxd5 {[%clk 0:02:48]}  Nd6 {[%clk 0:02:11]} 13. Bg6+ {[%clk 0:02:39]}  Kd8 {[%clk 0:02:06]} 14. Rxh7 {[%clk 0:02:35]}  Rxh7 {[%clk 0:02:04]} 15. Bxh7 {[%clk 0:02:35]}  c6 {[%clk 0:02:04]} 16. Qg2 {[%clk 0:02:32]}  Kc7 {[%clk 0:01:14]} 17. Bd3 {[%clk 0:02:31]}  Be6 {[%clk 0:01:08]} 18. Nge2 {[%clk 0:02:29]}  g5 {[%clk 0:01:04]} 19. O-O-O {[%clk 0:02:22]}  Rd8 {[%clk 0:00:44]} 20. Ng3 {[%clk 0:02:17]}  Kb8 {[%clk 0:00:41]} 21. Nge4 {[%clk 0:02:17]}  Nxe4 {[%clk 0:00:39]} 22. Bxe4 {[%clk 0:02:18]}  f5 {[%clk 0:00:28]} 23. Bd3 {[%clk 0:02:15]}  g4 {[%clk 0:00:24]} 24. Kb1 {[%clk 0:02:11]}  Qf7 {[%clk 0:00:20]} 25. Rh1 {[%clk 0:02:04]}  c5 {[%clk 0:00:19]} 26. d5 {[%clk 0:01:57]}  Bc8 {[%clk 0:00:16]} 27. Rh8 {[%clk 0:01:36]}  Qf6 {[%clk 0:00:16]} 28. Rh7 {[%clk 0:01:23]}  Bg7 {[%clk 0:00:14]} 29. Qg3+ {[%clk 0:01:20]}  Ka8 {[%clk 0:00:13]} 30. Qc7 {[%clk 0:01:19]}  Rg8 {[%clk 0:00:11]} 31. Qxc5 {[%clk 0:01:13]}  Qg6 {[%clk 0:00:11]} 32. Nb5 {[%clk 0:01:02]}  Qxh7 {[%clk 0:00:09]} 33. Qxa7# {[%clk 0:01:01]} 1-0


[Site "https://www.chess.com"]